Workbook

Sheet F10 EMPSR
C3: FORMATO 10A PREVISIÓN ECONÓMICA DISPONIBILIDAD FINANCIERA
C5: Detalle | E5: 2026 | F5: 2027 | G5: 2028 | H5: 2029 | I5: 2030 | J5: 2031 | K5: 2032 | L5: Comentarios
C6: Saldo Inicial/Saldo del Año Anterior | E6: =SUPUESTOS!C5 -> 1600 | F6: =E164 -> 370727.691 | G6: 3221950.266 | H6: 8372374.775 | I6: 15162260.2 | J6: 23627248.05 | K6: 31938122.9
C7: INGRESOS | E7: =E8+E14 -> 1347480 | F7: 6032466 | G7: 9795132 | H7: 12856284 | I7: 15535104 | J7: 15535104 | K7: 15535104
C8: 1. Recursos propios | E8: =SUM(E9:E11) -> 1347480 | F8: 6032466 | G8: 9795132 | H8: 12856284 | I8: 15535104 | J8: 15535104 | K8: 15535104
C9: Matrículas y pensiones | E9: =MATRICULAS_PENSIONES!C27 -> 1272000 | F9: =MATRICULAS_PENSIONES!D27 -> 5872400 | G9: =MATRICULAS_PENSIONES!E27 -> 9624800 | H9: =MATRICULAS_PENSIONES!F27 -> 12677600 | I9: =MATRICULAS_PENSIONES!G27 -> 14585600 | J9: =MATRICULAS_PENSIONES!H27 -> 14585600 | K9: =MATRICULAS_PENSIONES!I27 -> 14585600 | L9: Matrícula S/300 y cinco pensiones semestrales de S/1 000.
C10: Ejecución de Proyectos productivos y de investigación aplicada y/o innovación | E10: 0 | F10: 0 | G10: 0 | H10: 0 | I10: 0 | J10: 0 | K10: 0
C11: Procesos académicos(2) | E11: =PROCESOS_ACADEMICOS!C10+ADMISION!C6 -> 75480 | F11: =PROCESOS_ACADEMICOS!D10+ADMISION!D6 -> 160066 | G11: =PROCESOS_ACADEMICOS!E10+ADMISION!E6 -> 170332 | H11: =PROCESOS_ACADEMICOS!F10+ADMISION!F6 -> 178684 | I11: =PROCESOS_ACADEMICOS!G10+ADMISION!G6 -> 949504 | J11: =PROCESOS_ACADEMICOS!H10+ADMISION!H6 -> 949504 | K11: =PROCESOS_ACADEMICOS!I10+ADMISION!I6 -> 949504 | L11: Incluye derecho de admisión y demás procesos académicos, conciliados con el Anexo 3 del MPA.
C14: Otros(3) | E14: =SUM(E15:E16) -> 0 | F14: 0 | G14: 0 | H14: 0 | I14: 0 | J14: 0 | K14: 0
C15: Donaciones | E15: 0 | F15: 0 | G15: 0 | H15: 0 | I15: 0 | J15: 0 | K15: 0
C16: Otros (especializaciones, diplomados, entre otros) | E16: 0 | F16: 0 | G16: 0 | H16: 0 | I16: 0 | J16: 0 | K16: 0 | L16: Sin proyección de especializaciones, diplomados u otros ingresos. La admisión se registra en Procesos académicos, conforme a la nota (2).
C18: EGRESOS | E18: =E19+E29+E113+E143+E145+E149+E155 -> 1058352.309 | F18: 3181243.425 | G18: 4644707.491 | H18: 6066398.572 | I18: 7070116.153 | J18: 7224229.153 | K18: 7329274.153
C19: 1. Personal | E19: =SUM(E20:E24)+E27 -> 498440 | F19: 1263944 | G19: 1621704 | H19: 2013768 | I19: 2013768 | J19: 2119368 | K19: 2119368
C20: Remuneraciones y beneficios sociales a docentes(4) | E20: =DOCENTES!C8 -> 88440 | F20: =DOCENTES!D8 -> 442944 | G20: =DOCENTES!E8 -> 796704 | H20: =DOCENTES!F8 -> 1062768 | I20: =DOCENTES!G8 -> 1062768 | J20: =DOCENTES!H8 -> 1062768 | K20: =DOCENTES!I8 -> 1062768 | L20: Incluye horas no lectivas del docente-tutor desde la etapa de alternancia. Ver DOCENTES.
C21: Remuneraciones y beneficios sociales a personal directivo | E21: =PERSONAL!C4 -> 117000 | F21: =PERSONAL!D4 -> 234000 | G21: =PERSONAL!E4 -> 234000 | H21: =PERSONAL!F4 -> 252000 | I21: =PERSONAL!G4 -> 252000 | J21: =PERSONAL!H4 -> 270000 | K21: =PERSONAL!I4 -> 270000 | L21: Detalle individual: P01 Dirección General, P03 Jefe de Unidad Académica y P09 Administración. Ver HONORARIOS_MPP.
C22: Remuneraciones y beneficios sociales a personal administrativo | E22: =PERSONAL!C5 -> 219000 | F22: =PERSONAL!D5 -> 438000 | G22: =PERSONAL!E5 -> 438000 | H22: =PERSONAL!F5 -> 510000 | I22: =PERSONAL!G5 -> 510000 | J22: =PERSONAL!H5 -> 561600 | K22: =PERSONAL!I5 -> 561600 | L22: Detalle individual: P02, P04 CNP, P04 CIM, P06 y P13; otros administrativos/soporte en global. Ver HONORARIOS_MPP.
C23: Remuneraciones y beneficios sociales a personal operativo y/o servicios | E23: =PERSONAL!C6 -> 72000 | F23: =PERSONAL!D6 -> 144000 | G23: =PERSONAL!E6 -> 144000 | H23: =PERSONAL!F6 -> 180000 | I23: =PERSONAL!G6 -> 180000 | J23: =PERSONAL!H6 -> 216000 | K23: =PERSONAL!I6 -> 216000 | L23: Servicios especializados y otros operativos en global. P18/P19 se financian en SEGURIDAD_VIGILANCIA para evitar duplicidad.
C24: Capacitación y/o actualización docente | E24: =CAPACITACION!C6 -> 2000 | F24: =CAPACITACION!D6 -> 5000 | G24: =CAPACITACION!E6 -> 9000 | H24: =CAPACITACION!F6 -> 9000 | I24: =CAPACITACION!G6 -> 9000 | J24: =CAPACITACION!H6 -> 9000 | K24: =CAPACITACION!I6 -> 9000
C27: Otros(5) | E27: 0 | F27: 0 | G27: 0 | H27: 0 | I27: 0 | J27: 0 | K27: 0
C29: 2. Bienes y servicios | E29: =E30+E37+E44+E51+E58+E65+E73+E81+E89+E97+E105 -> 205455 | F29: 398910 | G29: 514910 | H29: 732910 | I29: 1008910 | J29: 1121910 | K29: 1235910
C30: Servicios básicos(6) | E30: =SERVICIOS_BASICOS!C8 -> 12000 | F30: =SERVICIOS_BASICOS!D8 -> 24000 | G30: =SERVICIOS_BASICOS!E8 -> 30000 | H30: =SERVICIOS_BASICOS!F8 -> 36000 | I30: =SERVICIOS_BASICOS!G8 -> 42000 | J30: =SERVICIOS_BASICOS!H8 -> 48000 | K30: =SERVICIOS_BASICOS!I8 -> 54000
C31: Local 001 | E31: =E30 -> 12000 | F31: 24000 | G31: 30000 | H31: 36000 | I31: 42000 | J31: 48000 | K31: 54000
C32: Local 002
C33: Local 003
C35: Local n
C37: Alquileres(7) | E37: =ALQUILERES!C7 -> 61455 | F37: =ALQUILERES!D7 -> 122910 | G37: =ALQUILERES!E7 -> 122910 | H37: =ALQUILERES!F7 -> 122910 | I37: =ALQUILERES!G7 -> 122910 | J37: =ALQUILERES!H7 -> 122910 | K37: =ALQUILERES!I7 -> 122910 | L37: 2026 medio año; S/122 910 anuales desde 2027.
C38: Local 001 | E38: =E37 -> 61455 | F38: 122910 | G38: 122910 | H38: 122910 | I38: 122910 | J38: 122910 | K38: 122910
C39: Local 002
C40: Local 003
C42: Local n
C44: Servicio médico (tópico)(8) | E44: =TOPICO!C7 -> 6000 | F44: =TOPICO!D7 -> 12000 | G44: =TOPICO!E7 -> 15000 | H44: =TOPICO!F7 -> 18000 | I44: =TOPICO!G7 -> 20000 | J44: =TOPICO!H7 -> 22000 | K44: =TOPICO!I7 -> 24000
C45: Local 001 | E45: =E44 -> 6000 | F45: 12000 | G45: 15000 | H45: 18000 | I45: 20000 | J45: 22000 | K45: 24000
C46: Local 002
C47: Local 003
C49: Local n
C51: Servicios educacionales complementarios básicos(9) | E51: =SERVICIOS_EDUCACIONALES!C8 -> 10000 | F51: =SERVICIOS_EDUCACIONALES!D8 -> 20000 | G51: =SERVICIOS_EDUCACIONALES!E8 -> 28000 | H51: =SERVICIOS_EDUCACIONALES!F8 -> 35000 | I51: =SERVICIOS_EDUCACIONALES!G8 -> 42000 | J51: =SERVICIOS_EDUCACIONALES!H8 -> 48000 | K51: =SERVICIOS_EDUCACIONALES!I8 -> 55000
C52: Local 001 | E52: =E51 -> 10000 | F52: 20000 | G52: 28000 | H52: 35000 | I52: 42000 | J52: 48000 | K52: 55000
C53: Local 002
C54: Local 003
C56: Local n
C58: Mantenimiento(10) | E58: =MANTENIMIENTO!C8 -> 20000 | F58: =MANTENIMIENTO!D8 -> 35000 | G58: =MANTENIMIENTO!E8 -> 50000 | H58: =MANTENIMIENTO!F8 -> 70000 | I58: =MANTENIMIENTO!G8 -> 85000 | J58: =MANTENIMIENTO!H8 -> 95000 | K58: =MANTENIMIENTO!I8 -> 110000
C59: Local 001 | E59: =E58 -> 20000 | F59: 35000 | G59: 50000 | H59: 70000 | I59: 85000 | J59: 95000 | K59: 110000
C60: Local 002
C61: Local 003
C63: Local n
C65: Seguimiento de egresados(11) | E65: =SEGUIMIENTO_EGRESADOS!C7 -> 0 | F65: =SEGUIMIENTO_EGRESADOS!D7 -> 0 | G65: =SEGUIMIENTO_EGRESADOS!E7 -> 0 | H65: =SEGUIMIENTO_EGRESADOS!F7 -> 8000 | I65: =SEGUIMIENTO_EGRESADOS!G7 -> 20000 | J65: =SEGUIMIENTO_EGRESADOS!H7 -> 25000 | K65: =SEGUIMIENTO_EGRESADOS!I7 -> 30000
C66: Local 001 | E66: =E65 -> 0 | F66: 0 | G66: 0 | H66: 8000 | I66: 20000 | J66: 25000 | K66: 30000
C67: Local 002
C68: Local 003
C70: Local n
C73: Seguridad y vigilancia institucional(12) | E73: =SEGURIDAD_VIGILANCIA!C7 -> 12000 | F73: =SEGURIDAD_VIGILANCIA!D7 -> 24000 | G73: =SEGURIDAD_VIGILANCIA!E7 -> 30000 | H73: =SEGURIDAD_VIGILANCIA!F7 -> 36000 | I73: =SEGURIDAD_VIGILANCIA!G7 -> 42000 | J73: =SEGURIDAD_VIGILANCIA!H7 -> 48000 | K73: =SEGURIDAD_VIGILANCIA!I7 -> 54000
C74: Local 001 | E74: =E73 -> 12000 | F74: 24000 | G74: 30000 | H74: 36000 | I74: 42000 | J74: 48000 | K74: 54000
C75: Local 002
C76: Local 003
C78: Local n
C81: Plataforma virtual o entornos virtuales de aprendizaje (EVA)(13) | E81: =EVA!C8 -> 10000 | F81: =EVA!D8 -> 18000 | G81: =EVA!E8 -> 22000 | H81: =EVA!F8 -> 26000 | I81: =EVA!G8 -> 30000 | J81: =EVA!H8 -> 34000 | K81: =EVA!I8 -> 38000
C82: Local 001 | E82: =E81 -> 10000 | F82: 18000 | G82: 22000 | H82: 26000 | I82: 30000 | J82: 34000 | K82: 38000
C83: Local 002
C84: Local 003
C86: Local n
C89: Intermediación e inserción laboral(14) | E89: =INSERCION_LABORAL!C7 -> 4000 | F89: =INSERCION_LABORAL!D7 -> 8000 | G89: =INSERCION_LABORAL!E7 -> 12000 | H89: =INSERCION_LABORAL!F7 -> 16000 | I89: =INSERCION_LABORAL!G7 -> 20000 | J89: =INSERCION_LABORAL!H7 -> 24000 | K89: =INSERCION_LABORAL!I7 -> 28000
C90: Local 001 | E90: =E89 -> 4000 | F90: 8000 | G90: 12000 | H90: 16000 | I90: 20000 | J90: 24000 | K90: 28000
C91: Local 002
C92: Local 003
C94: Local n
C97: Publicidad y Marketing(15) | E97: =PUBLICIDAD_MARKETING!C7 -> 30000 | F97: =PUBLICIDAD_MARKETING!D7 -> 45000 | G97: =PUBLICIDAD_MARKETING!E7 -> 55000 | H97: =PUBLICIDAD_MARKETING!F7 -> 65000 | I97: =PUBLICIDAD_MARKETING!G7 -> 75000 | J97: =PUBLICIDAD_MARKETING!H7 -> 85000 | K97: =PUBLICIDAD_MARKETING!I7 -> 95000
C98: Local 001 | E98: =E97 -> 30000 | F98: 45000 | G98: 55000 | H98: 65000 | I98: 75000 | J98: 85000 | K98: 95000
C99: Local 002
C100: Local 003
C102: Local n
C105: Otros(16) | E105: =E106 -> 40000 | F105: 90000 | G105: 150000 | H105: 300000 | I105: 510000 | J105: 570000 | K105: 625000 | L105: Titulación y alternancia. Simuladores y embarcaciones mediante convenios, sin adquisición.
C106: Local 001 | E106: =TITULACION!C7+ALTERNANCIA_EFSRT!C9 -> 40000 | F106: =TITULACION!D7+ALTERNANCIA_EFSRT!D9 -> 90000 | G106: =TITULACION!E7+ALTERNANCIA_EFSRT!E9 -> 150000 | H106: =TITULACION!F7+ALTERNANCIA_EFSRT!F9 -> 300000 | I106: =TITULACION!G7+ALTERNANCIA_EFSRT!G9 -> 510000 | J106: =TITULACION!H7+ALTERNANCIA_EFSRT!H9 -> 570000 | K106: =TITULACION!I7+ALTERNANCIA_EFSRT!I9 -> 625000
C107: Local 002
C108: Local 003
C110: Local n
C113: 3. Inversiones | E113: =E114+E121+E128+E135 -> 195000 | F113: 215000 | G113: 185000 | H113: 260000 | I113: 240000 | J113: 225000 | K113: 245000
C114: Infraestructura(17) | E114: =INFRAESTRUCTURA!C8 -> 50000 | F114: =INFRAESTRUCTURA!D8 -> 30000 | G114: =INFRAESTRUCTURA!E8 -> 25000 | H114: =INFRAESTRUCTURA!F8 -> 35000 | I114: =INFRAESTRUCTURA!G8 -> 30000 | J114: =INFRAESTRUCTURA!H8 -> 30000 | K114: =INFRAESTRUCTURA!I8 -> 35000
C115: Local 001 | E115: =E114 -> 50000 | F115: 30000 | G115: 25000 | H115: 35000 | I115: 30000 | J115: 30000 | K115: 35000
C116: Local 002
C117: Local 003
C119: Local n
C121: Adquisición de equipos, mobiliario y/o recursos para el aprendizaje(18) | E121: =EQUIPAMIENTO!C9 -> 120000 | F121: =EQUIPAMIENTO!D9 -> 150000 | G121: =EQUIPAMIENTO!E9 -> 120000 | H121: =EQUIPAMIENTO!F9 -> 180000 | I121: =EQUIPAMIENTO!G9 -> 160000 | J121: =EQUIPAMIENTO!H9 -> 140000 | K121: =EQUIPAMIENTO!I9 -> 150000
C122: Local 001 | E122: =E121 -> 120000 | F122: 150000 | G122: 120000 | H122: 180000 | I122: 160000 | J122: 140000 | K122: 150000
C123: Local 002
C124: Local 003
C126: Local n
C128: Adquisición de recursos bibliográficos(19) | E128: =BIBLIOTECA!C8 -> 25000 | F128: =BIBLIOTECA!D8 -> 35000 | G128: =BIBLIOTECA!E8 -> 40000 | H128: =BIBLIOTECA!F8 -> 45000 | I128: =BIBLIOTECA!G8 -> 50000 | J128: =BIBLIOTECA!H8 -> 55000 | K128: =BIBLIOTECA!I8 -> 60000
C129: Local 001 | E129: =E128 -> 25000 | F129: 35000 | G129: 40000 | H129: 45000 | I129: 50000 | J129: 55000 | K129: 60000
C130: Local 002
C131: Local 003
C133: Local n
C135: Otros(20) | E135: 0 | F135: =+SUM(F136:F142) -> 0 | G135: 0 | H135: 0 | I135: 0 | J135: 0 | K135: 0
C136: Local 001 | E136: 0 | F136: 0 | G136: 0 | H136: 0 | I136: 0 | J136: 0 | K136: 0
C137: Local 002
C138: Local 003
C140: Local n
C143: 4. Investigación e Innovación (solo para las EEST)(21) | E143: =INVESTIGACION!C9 -> 25000 | F143: =INVESTIGACION!D9 -> 50000 | G143: =INVESTIGACION!E9 -> 70000 | H143: =INVESTIGACION!F9 -> 90000 | I143: =INVESTIGACION!G9 -> 110000 | J143: =INVESTIGACION!H9 -> 125000 | K143: =INVESTIGACION!I9 -> 140000 | L143: Presupuesto específico vinculado al Plan de Investigación.
C145: 5. Financieros(22) | E145: =E146 -> 0 | F145: 0 | G145: 0 | H145: 0 | I145: 0 | J145: 0 | K145: 0
C146: Pago de préstamos (amortizaciones a capital e intereses) | E146: 0 | F146: 0 | G146: 0 | H146: 0 | I146: 0 | J146: 0 | K146: 0
C149: 6. Rentas e Impuestos(23) | E149: =SUM(E150:E153) -> 120982.509 | F149: 1193064.765 | G149: 2155142.171 | H149: 2841157.732 | I149: 3542087.113 | J149: 3477600.113 | K149: 3433645.113
C150: Dietas | E150: 0 | F150: 0 | G150: 0 | H150: 0 | I150: 0 | J150: 0 | K150: 0
C151: Dividendos | E151: 0 | F151: 0 | G151: 0 | H151: 0 | I151: 0 | J151: 0 | K151: 0
C152: Impuestos | E152: =IMPUESTOS!C9 -> 120982.509 | F152: =IMPUESTOS!D9 -> 1193064.765 | G152: =IMPUESTOS!E9 -> 2155142.171 | H152: =IMPUESTOS!F9 -> 2841157.732 | I152: =IMPUESTOS!G9 -> 3542087.113 | J152: =IMPUESTOS!H9 -> 3477600.113 | K152: =IMPUESTOS!I9 -> 3433645.113
C153: Otros (detallar) | E153: 0 | F153: 0 | G153: 0 | H153: 0 | I153: 0 | J153: 0 | K153: 0
C155: 7. Otros(24) | E155: =SUM(E156:E160) -> 13474.8 | F155: 60324.66 | G155: 97951.32 | H155: 128562.84 | I155: 155351.04 | J155: 155351.04 | K155: 155351.04
C156: Local 001 | E156: =CONTINGENCIAS!C6 -> 13474.8 | F156: =CONTINGENCIAS!D6 -> 60324.66 | G156: =CONTINGENCIAS!E6 -> 97951.32 | H156: =CONTINGENCIAS!F6 -> 128562.84 | I156: =CONTINGENCIAS!G6 -> 155351.04 | J156: =CONTINGENCIAS!H6 -> 155351.04 | K156: =CONTINGENCIAS!I6 -> 155351.04
C157: Local 002
C158: Local 003
C160: Local n
C162: SALDO (INGRESOS - EGRESOS) | E162: =E7-E18 -> 289127.691 | F162: 2851222.575 | G162: 5150424.509 | H162: 6789885.428 | I162: 8464987.847 | J162: 8310874.847 | K162: 8205829.847
C164: SALDO ACUMULADO | E164: =E6+E162+E166 -> 370727.691 | F164: 3221950.266 | G164: 8372374.775 | H164: 15162260.2 | I164: 23627248.05 | J164: 31938122.9 | K164: 40143952.74
C166: FUENTES DE FINANCIAMIENTO(25) | E166: =SUM(E167:E169) -> 80000 | F166: 0 | G166: 0 | H166: 0 | I166: 0 | J166: 0 | K166: 0 | L166: Aporte de capital de S/80 000 en 2026.
C167: Préstamos (bancarios, socios, etc.) | E167: 0 | F167: 0 | G167: 0 | H167: 0 | I167: 0 | J167: 0 | K167: 0
C168: Aportes de Capital | E168: 80000 | F168: 0 | G168: 0 | H168: 0 | I168: 0 | J168: 0 | K168: 0
C169: Otros (detallar) | E169: 0 | F169: 0 | G169: 0 | H169: 0 | I169: 0 | J169: 0 | K169: 0
C171: *La institución puede insertar las filas que sean necesarias. De no contar con filiales llenar únicamente como sede principal.
C172: (1) Colocar el año de la presentación de la solicitud de licenciamiento y el correlativo de los años siguientes. De ser el caso que el año de presentación de la solicitud incluya información histórica e información proyectada, adicionar el año previo. (2) Incluye los ingresos generados por los distintos procesos académicos ( admisión, titulación, grado, convalidación, entre otros). (3) Otras fuentes de ingresos del IES o EEST para el desarrollo de los programas de estudios declarados y proyectados. (4) Incluye remuneraciones y beneficios sociales al personal docente de la institución. (5) Incluye otros gastos relacionados con el personal que labora en la institución, excepto los dos ítems iniciales relacionados con el personal docente. (6) Incluye el gasto en servicios básicos (agua, desagüe, energía eléctrica), telefonía e Internet. Usar como base el promedio de los consumos históricos de 6 meses anteriores en cada servicio. (7) Alquileres de locales, sede administrativa, sede principal y filiales donde se brinda el servicio educativo. (8) Personal, equipamiento e insumos propios del servicio médico (tópico), según lo declarado en el formato 11A. (9) Personal y equipamiento propios de los servicios educacionales complementarios básicos declarados en el formato 11A. (10) Mantenimiento de la infraestructura y equipos para el desarrollo de los programas de estudios declarados. Detallar los conceptos a los cuales se destinan los montos. (11) Detallar el presupuesto para el desarrollo del plan de seguimiento de egresados para los 6 años. (12) Incluye servicio de seguridad y vigilancia institucional, en sede principal, locales y filiales donde se brinde el servicio educativo. (13) Incluye servicios de plataforma virtual o entornos virtuales de aprendizaje (EVA). (14) Presupuesto para la inserción e intermediación laboral. (15) Detallar presupuesto para actividades de marketing o publicidad. (16) Otros gastos relacionados a bienes y servicios. (17) Inversión en infraestructura para el desarrollo de los programas de estudios declarados o proyectados. Detallar los conceptos a los cuales se destinan los montos. (18) Adquisición de equipos, mobiliario, recursos para el aprendizaje (herramientas, instrumentos, utensilios, software, entre otros) para el desarrollo de los programas de estudios declarados o proyectados. Detallar los conceptos a los cuales se destinan los montos. (19) Adquisición de recursos bibliográficos físicos y/o virtuales (si los hubiere, incluyendo el gasto por soporte técnico), según los programas de estudio declarados o proyectados. (20) Otros gastos relacionados a inversiones para el desarrollo de los programas de estudios. (21) Solo para las EEST, detallar los conceptos y montos que implicarán el desarrollo de investigación aplicada e/o innovación. (22) Presupuesto para el cumplimiento de obligaciones de deuda (amortización de capital e intereses). (23) Presupuesto sobre rentas e impuestos, de ser el caso. (24)Otros rubros no contemplados en los ítems 1, 2 y 3 de este formato, para la provisión del servicio educativo en la sede principal y filiales. (25) Recursos adicionales requeridos (ingresos financieros) para la continuidad de la provisión del servicio educativos, según los programas de estudios declarados o proyectados.
C173: (Ciudad), …………… de ……………………. de ……………

Sheet SUPUESTOS
A1: SUPUESTOS ECONÓMICOS, ACADÉMICOS Y FINANCIEROS
A4: Código | B4: Supuesto | C4: Valor | D4: Unidad | E4: Aplicación | F4: Fuente | G4: Editable | H4: Observación | I4: CNP | J4: CIM
A5: S01 | B5: Saldo al cierre de 2025 | C5: 1600 | D5: S/ | E5: Saldo inicial 2026 | F5: Promotora | G5: Sí | H5: Saldo del ejercicio anterior
A6: S02 | B6: Aporte de capital 2026 | C6: 80000 | D6: S/ | E6: Fuentes de financiamiento | F6: Promotora | G6: Sí | H6: Aporte de capital
A7: S03 | B7: Pensión mensual | C7: 1000 | D7: S/ | E7: Ingresos | F7: Promotora | G7: Sí | H7: Cinco cuotas por semestre
A8: S04 | B8: Matrícula por semestre | C8: 300 | D8: S/ | E8: Ingresos | F8: Promotora | G8: Sí | H8: Dos matrículas al año
A9: S05 | B9: Programas | C9: 2 | D9: programas | E9: Proyección | F9: Formatos 8E | G9: No | H9: CNP y CIM | I9: 1 | J9: 1
A10: S06 | B10: Turnos por programa | C10: 2 | D10: turnos | E10: Proyección | F10: Modelo institucional | G10: Sí | H10: Mañana y noche | I10: 2 | J10: 2
A11: S07 | B11: Ingresantes por programa/turno/semestre | C11: 60 | D11: estudiantes | E11: Proyección | F11: Modelo institucional | G11: Sí | H11: Sujeto a demanda y capacidad | I11: 60 | J11: 60
A12: S08 | B12: Retención por ciclo | C12: 0.9 | D12: % | E12: Ocho ciclos | F12: Supuesto de planificación | G12: Sí | H12: Redondeo por ciclo
A13: S09 | B13: Cuotas por semestre | C13: 5 | D13: cuotas | E13: Ingresos | F13: Política económica | G13: Sí | H13: S/1 000 cada cuota
A14: S10 | B14: Inicio de actividades | C14: 2026-II | D14: periodo | E14: Horizonte | F14: Cronograma | G14: No | H14: 2026 corresponde a medio año
A15: S11 | B15: Horas en empresa/otros ámbitos | D15: horas | E15: Alternancia | F15: Formato 8E | G15: No | H15: Uso por convenio | I15: 2048 | J15: 1472
A16: S12 | B16: Créditos en empresa/otros ámbitos | D16: créditos | E16: Alternancia | F16: Formato 8E | G16: No | H16: Uso por convenio | I16: 64 | J16: 46
A17: S13 | B17: Tasa anual de IR estimada | C17: 0.295 | D17: % | E17: Impuestos | F17: SUNAT | G17: Sí | H17: Sobre utilidad positiva
A18: S14 | B18: Pago a cuenta referencial | C18: 0.015 | D18: % | E18: Impuestos | F18: SUNAT | G18: Sí | H18: Sobre ingresos
A19: S15 | B19: Meses presupuestados 2026 | C19: 6 | D19: meses | E19: Personal | F19: MPP / cronograma | G19: Sí | H19: 2026 corresponde a medio año
A20: S16 | B20: Meses presupuestados por año 2027-2032 | C20: 12 | D20: meses | E20: Personal | F20: MPP / cronograma | G20: Sí | H20: Años completos
A21: Fuente oficial | B21: URL
A22: MINEDU – Formatos para licenciamiento IES/EEST privados | B22: https://www.gob.pe/institucion/minedu/informes-publicaciones/5484048-formatos-para-licenciamiento-ies-_eest-privados
A23: MINEDU – procedimiento de licenciamiento | B23: https://www.minedu.gob.pe/superiortecnologica/procedimiento-licenciamiento.php
A24: SUNAT – rentas de tercera categoría | B24: https://orientacion.sunat.gob.pe/01-informes-sunat-sobre-rentas-de-tercera-categoria
A26: SUPUESTOS DE TARIFARIO MPA 2026 Y DEMANDA PROYECTADA
A27: S17 | B27: Derecho de admisión | C27: 300 | D27: S/ | E27: Admisión | F27: MPA, Anexo 3 | G27: No | H27: Tarifa por postulación
A28: S18 | B28: Ratio postulantes por ingresante | C28: 1 | D28: ratio | E28: Admisión | F28: Supuesto conservador | G28: Sí | H28: Actualizar con evidencia del Plan de Admisión
A29: S19 | B29: Récord de notas - tarifa | C29: 50 | D29: S/ | E29: Procesos académicos | F29: MPA, Anexo 3 | G29: No | H29: MPA-P09
A30: S20 | B30: Récord de notas - incidencia | C30: 0.05 | D30: % estudiantes-semestre | E30: Procesos académicos | F30: Supuesto de planificación | G30: Sí | H30: Demanda anual estimada
A31: S21 | B31: Constancia de estudios profesionales - tarifa | C31: 100 | D31: S/ | E31: Procesos académicos | F31: MPA, Anexo 3 | G31: No | H31: MPA-P09
A32: S22 | B32: Constancia de estudios profesionales - incidencia | C32: 0.1 | D32: % estudiantes-semestre | E32: Procesos académicos | F32: Supuesto de planificación | G32: Sí | H32: Demanda anual estimada
A33: S23 | B33: Recargo diferencial de matrícula extemporánea | C33: 50 | D33: S/ | E33: Procesos académicos | F33: MPA, Anexo 3 | G33: No | H33: S/350 menos matrícula ordinaria de S/300
A34: S24 | B34: Matrícula extemporánea - incidencia | C34: 0.03 | D34: % estudiantes-semestre | E34: Procesos académicos | F34: Supuesto de planificación | G34: Sí | H34: Demanda anual estimada
A35: S25 | B35: Copia de sílabo por periodo académico - tarifa | C35: 50 | D35: S/ | E35: Procesos académicos | F35: MPA, Anexo 3 | G35: No | H35: MPA-P09
A36: S26 | B36: Copia de sílabo - incidencia | C36: 0.01 | D36: % estudiantes-semestre | E36: Procesos académicos | F36: Supuesto de planificación | G36: Sí | H36: Demanda anual estimada
A37: S27 | B37: Grado de bachiller - tarifa | C37: 3000 | D37: S/ | E37: Procesos académicos | F37: MPA, Anexo 3 | G37: No | H37: MPA-P11
A38: S28 | B38: Grado de bachiller - incidencia | C38: 0.6 | D38: % egresados | E38: Procesos académicos | F38: Supuesto de planificación | G38: Sí | H38: Demanda anual estimada
A39: S29 | B39: Título profesional - tarifa | C39: 3000 | D39: S/ | E39: Procesos académicos | F39: MPA, Anexo 3 | G39: No | H39: MPA-P12
A40: S30 | B40: Título profesional - incidencia | C40: 0.5 | D40: % egresados | E40: Procesos académicos | F40: Supuesto de planificación | G40: Sí | H40: Demanda anual estimada
A41: S31 | B41: Reserva por morosidad | C41: 0.005 | D41: % ingresos | E41: Contingencias | F41: Supuesto de planificación | G41: Sí | H41: Revisar anualmente con evidencia de cobranza
A42: S32 | B42: Contingencias operativas | C42: 0.005 | D42: % ingresos | E42: Contingencias | F42: Supuesto de planificación | G42: Sí | H42: Mantiene la previsión vigente

Sheet MATRICULAS_PENSIONES
A1: PROYECCIÓN DE MATRÍCULAS Y PENSIONES – OCHO CICLOS
A4: Supuesto | B4: Valor | D4: Ciclo | E4: Estudiantes por programa/turno
A5: Programas | B5: =SUPUESTOS!C9 -> 2 | D5: I | E5: =$B$7 -> 60
A6: Turnos por programa | B6: =SUPUESTOS!C10 -> 2 | D6: II | E6: =ROUND(E5*$B$8,0) -> 54
A7: Ingresantes por programa/turno/semestre | B7: =SUPUESTOS!C11 -> 60 | D7: III | E7: 49
A8: Retención por ciclo | B8: =SUPUESTOS!C12 -> 0.9 | D8: IV | E8: 44
A9: Matrícula por semestre | B9: =SUPUESTOS!C8 -> 300 | D9: V | E9: 40
A10: Pensión mensual | B10: =SUPUESTOS!C7 -> 1000 | D10: VI | E10: 36
D11: VII | E11: 32
D12: VIII | E12: 29
A15: Indicador | B15: 2026-II | C15: 2027-I | D15: 2027-II | E15: 2028-I | F15: 2028-II | G15: 2029-I | H15: 2029-II | I15: 2030-I | J15: 2030-II | K15: 2031-I | L15: 2031-II | M15: 2032-I | N15: 2032-II
A16: Estudiantes activos | B16: =$B$5*$B$6*SUM($E$5) -> 240 | C16: =$B$5*$B$6*SUM($E$5:$E$6) -> 456 | D16: =$B$5*$B$6*SUM($E$5:$E$7) -> 652 | E16: =$B$5*$B$6*SUM($E$5:$E$8) -> 828 | F16: =$B$5*$B$6*SUM($E$5:$E$9) -> 988 | G16: =$B$5*$B$6*SUM($E$5:$E$10) -> 1132 | H16: =$B$5*$B$6*SUM($E$5:$E$11) -> 1260 | I16: =$B$5*$B$6*SUM($E$5:$E$12) -> 1376 | J16: 1376 | K16: 1376 | L16: 1376 | M16: 1376 | N16: 1376
A17: Nuevos ingresantes | B17: =$B$5*$B$6*$B$7 -> 240 | C17: 240 | D17: 240 | E17: 240 | F17: 240 | G17: 240 | H17: 240 | I17: 240 | J17: 240 | K17: 240 | L17: 240 | M17: 240 | N17: 240
A18: Egresados estimados | B18: 0 | C18: 0 | D18: 0 | E18: 0 | F18: 0 | G18: 0 | H18: 0 | I18: =$B$5*$B$6*$E$12 -> 116 | J18: 116 | K18: 116 | L18: 116 | M18: 116 | N18: 116
A21: Indicador | B21: Base | C21: 2026 | D21: 2027 | E21: 2028 | F21: 2029 | G21: 2030 | H21: 2031 | I21: 2032
A22: Estudiantes-semestre | B22: Suma de periodos | C22: =B16 -> 240 | D22: =C16+D16 -> 1108 | E22: =E16+F16 -> 1816 | F22: =G16+H16 -> 2392 | G22: =I16+J16 -> 2752 | H22: =K16+L16 -> 2752 | I22: =M16+N16 -> 2752
A23: Nuevos ingresantes | B23: Ingresantes del año | C23: 240 | D23: 480 | E23: 480 | F23: 480 | G23: 480 | H23: 480 | I23: 480
A24: Egresados estimados | B24: Ciclo VIII culminado | C24: 0 | D24: 0 | E24: 0 | F24: 0 | G24: 232 | H24: 232 | I24: 232
A25: Ingresos por matrícula | B25: S/300 por semestre | C25: =C22*$B$9 -> 72000 | D25: 332400 | E25: 544800 | F25: 717600 | G25: 825600 | H25: 825600 | I25: 825600
A26: Ingresos por pensiones | B26: 5 cuotas de S/1 000 | C26: =C22*$B$10*SUPUESTOS!C13 -> 1200000 | D26: =D22*$B$10*SUPUESTOS!C13 -> 5540000 | E26: =E22*$B$10*SUPUESTOS!C13 -> 9080000 | F26: =F22*$B$10*SUPUESTOS!C13 -> 11960000 | G26: =G22*$B$10*SUPUESTOS!C13 -> 13760000 | H26: =H22*$B$10*SUPUESTOS!C13 -> 13760000 | I26: =I22*$B$10*SUPUESTOS!C13 -> 13760000
A27: TOTAL MATRÍCULAS Y PENSIONES | B27: Matrícula + pensiones | C27: =SUM(C25:C26) -> 1272000 | D27: 5872400 | E27: 9624800 | F27: 12677600 | G27: 14585600 | H27: 14585600 | I27: 14585600

Sheet ADMISION
A1: PROYECCIÓN DE INGRESOS POR ADMISIÓN
A3: Concepto | B3: Base | C3: 2026 | D3: 2027 | E3: 2028 | F3: 2029 | G3: 2030 | H3: 2031 | I3: 2032
A4: Postulantes proyectados | B4: Nuevos ingresantes × ratio postulantes/ingresante | C4: =MATRICULAS_PENSIONES!C23*SUPUESTOS!$C$28 -> 240 | D4: =MATRICULAS_PENSIONES!D23*SUPUESTOS!$C$28 -> 480 | E4: =MATRICULAS_PENSIONES!E23*SUPUESTOS!$C$28 -> 480 | F4: =MATRICULAS_PENSIONES!F23*SUPUESTOS!$C$28 -> 480 | G4: =MATRICULAS_PENSIONES!G23*SUPUESTOS!$C$28 -> 480 | H4: =MATRICULAS_PENSIONES!H23*SUPUESTOS!$C$28 -> 480 | I4: =MATRICULAS_PENSIONES!I23*SUPUESTOS!$C$28 -> 480
A5: Derecho de admisión | B5: S/300 por postulante | C5: =C4*SUPUESTOS!$C$27 -> 72000 | D5: =D4*SUPUESTOS!$C$27 -> 144000 | E5: =E4*SUPUESTOS!$C$27 -> 144000 | F5: =F4*SUPUESTOS!$C$27 -> 144000 | G5: =G4*SUPUESTOS!$C$27 -> 144000 | H5: =H4*SUPUESTOS!$C$27 -> 144000 | I5: =I4*SUPUESTOS!$C$27 -> 144000
A6: TOTAL POR AÑO | B6: Ingreso por derecho de admisión | C6: =C5 -> 72000 | D6: 144000 | E6: 144000 | F6: 144000 | G6: 144000 | H6: 144000 | I6: 144000

Sheet PROCESOS_ACADEMICOS
A1: PROYECCIÓN DE INGRESOS POR PROCESOS ACADÉMICOS
A3: Concepto | B3: Base | C3: 2026 | D3: 2027 | E3: 2028 | F3: 2029 | G3: 2030 | H3: 2031 | I3: 2032
A4: Récord de notas (MPA-P09) | B4: 5% estudiantes-semestre × S/50 | C4: =MATRICULAS_PENSIONES!C22*SUPUESTOS!$C$30*SUPUESTOS!$C$29 -> 600 | D4: =MATRICULAS_PENSIONES!D22*SUPUESTOS!$C$30*SUPUESTOS!$C$29 -> 2770 | E4: =MATRICULAS_PENSIONES!E22*SUPUESTOS!$C$30*SUPUESTOS!$C$29 -> 4540 | F4: =MATRICULAS_PENSIONES!F22*SUPUESTOS!$C$30*SUPUESTOS!$C$29 -> 5980 | G4: =MATRICULAS_PENSIONES!G22*SUPUESTOS!$C$30*SUPUESTOS!$C$29 -> 6880 | H4: =MATRICULAS_PENSIONES!H22*SUPUESTOS!$C$30*SUPUESTOS!$C$29 -> 6880 | I4: =MATRICULAS_PENSIONES!I22*SUPUESTOS!$C$30*SUPUESTOS!$C$29 -> 6880
A5: Constancia de estudios profesionales (MPA-P09) | B5: 10% estudiantes-semestre × S/100 | C5: =MATRICULAS_PENSIONES!C22*SUPUESTOS!$C$32*SUPUESTOS!$C$31 -> 2400 | D5: =MATRICULAS_PENSIONES!D22*SUPUESTOS!$C$32*SUPUESTOS!$C$31 -> 11080 | E5: =MATRICULAS_PENSIONES!E22*SUPUESTOS!$C$32*SUPUESTOS!$C$31 -> 18160 | F5: =MATRICULAS_PENSIONES!F22*SUPUESTOS!$C$32*SUPUESTOS!$C$31 -> 23920 | G5: =MATRICULAS_PENSIONES!G22*SUPUESTOS!$C$32*SUPUESTOS!$C$31 -> 27520 | H5: =MATRICULAS_PENSIONES!H22*SUPUESTOS!$C$32*SUPUESTOS!$C$31 -> 27520 | I5: =MATRICULAS_PENSIONES!I22*SUPUESTOS!$C$32*SUPUESTOS!$C$31 -> 27520
A6: Recargo diferencial por matrícula extemporánea (MPA-P03) | B6: 3% estudiantes-semestre × S/50 | C6: =MATRICULAS_PENSIONES!C22*SUPUESTOS!$C$34*SUPUESTOS!$C$33 -> 360 | D6: =MATRICULAS_PENSIONES!D22*SUPUESTOS!$C$34*SUPUESTOS!$C$33 -> 1662 | E6: =MATRICULAS_PENSIONES!E22*SUPUESTOS!$C$34*SUPUESTOS!$C$33 -> 2724 | F6: =MATRICULAS_PENSIONES!F22*SUPUESTOS!$C$34*SUPUESTOS!$C$33 -> 3588 | G6: =MATRICULAS_PENSIONES!G22*SUPUESTOS!$C$34*SUPUESTOS!$C$33 -> 4128 | H6: =MATRICULAS_PENSIONES!H22*SUPUESTOS!$C$34*SUPUESTOS!$C$33 -> 4128 | I6: =MATRICULAS_PENSIONES!I22*SUPUESTOS!$C$34*SUPUESTOS!$C$33 -> 4128
A7: Copia de sílabo por periodo académico (MPA-P09) | B7: 1% estudiantes-semestre × S/50 | C7: =MATRICULAS_PENSIONES!C22*SUPUESTOS!$C$36*SUPUESTOS!$C$35 -> 120 | D7: =MATRICULAS_PENSIONES!D22*SUPUESTOS!$C$36*SUPUESTOS!$C$35 -> 554 | E7: =MATRICULAS_PENSIONES!E22*SUPUESTOS!$C$36*SUPUESTOS!$C$35 -> 908 | F7: =MATRICULAS_PENSIONES!F22*SUPUESTOS!$C$36*SUPUESTOS!$C$35 -> 1196 | G7: =MATRICULAS_PENSIONES!G22*SUPUESTOS!$C$36*SUPUESTOS!$C$35 -> 1376 | H7: =MATRICULAS_PENSIONES!H22*SUPUESTOS!$C$36*SUPUESTOS!$C$35 -> 1376 | I7: =MATRICULAS_PENSIONES!I22*SUPUESTOS!$C$36*SUPUESTOS!$C$35 -> 1376
A8: Grado de bachiller (MPA-P11) | B8: 60% egresados × S/3 000 | C8: =MATRICULAS_PENSIONES!C24*SUPUESTOS!$C$38*SUPUESTOS!$C$37 -> 0 | D8: =MATRICULAS_PENSIONES!D24*SUPUESTOS!$C$38*SUPUESTOS!$C$37 -> 0 | E8: =MATRICULAS_PENSIONES!E24*SUPUESTOS!$C$38*SUPUESTOS!$C$37 -> 0 | F8: =MATRICULAS_PENSIONES!F24*SUPUESTOS!$C$38*SUPUESTOS!$C$37 -> 0 | G8: =MATRICULAS_PENSIONES!G24*SUPUESTOS!$C$38*SUPUESTOS!$C$37 -> 417600 | H8: =MATRICULAS_PENSIONES!H24*SUPUESTOS!$C$38*SUPUESTOS!$C$37 -> 417600 | I8: =MATRICULAS_PENSIONES!I24*SUPUESTOS!$C$38*SUPUESTOS!$C$37 -> 417600
A9: Título profesional (MPA-P12) | B9: 50% egresados × S/3 000 | C9: =MATRICULAS_PENSIONES!C24*SUPUESTOS!$C$40*SUPUESTOS!$C$39 -> 0 | D9: =MATRICULAS_PENSIONES!D24*SUPUESTOS!$C$40*SUPUESTOS!$C$39 -> 0 | E9: =MATRICULAS_PENSIONES!E24*SUPUESTOS!$C$40*SUPUESTOS!$C$39 -> 0 | F9: =MATRICULAS_PENSIONES!F24*SUPUESTOS!$C$40*SUPUESTOS!$C$39 -> 0 | G9: =MATRICULAS_PENSIONES!G24*SUPUESTOS!$C$40*SUPUESTOS!$C$39 -> 348000 | H9: =MATRICULAS_PENSIONES!H24*SUPUESTOS!$C$40*SUPUESTOS!$C$39 -> 348000 | I9: =MATRICULAS_PENSIONES!I24*SUPUESTOS!$C$40*SUPUESTOS!$C$39 -> 348000
A10: TOTAL POR AÑO | C10: =SUM(C4:C9) -> 3480 | D10: 16066 | E10: 26332 | F10: 34684 | G10: 805504 | H10: 805504 | I10: 805504
A13: CONCEPTOS DEL MPA SIN DEMANDA PROYECTADA - INGRESO S/ 0
A14: Concepto | B14: Tarifa MPA 2026 (S/) | C14: 2026 | D14: 2027 | E14: 2028 | F14: 2029 | G14: 2030 | H14: 2031 | I14: 2032
A15: Evaluación o examen médico de aptitud | B15: 560 | C15: 0 | D15: 0 | E15: 0 | F15: 0 | G15: 0 | H15: 0 | I15: 0
A16: Reincorporación | B16: 250 | C16: 0 | D16: 0 | E16: 0 | F16: 0 | G16: 0 | H16: 0 | I16: 0
A17: Traslado interno | B17: 250 | C17: 0 | D17: 0 | E17: 0 | F17: 0 | G17: 0 | H17: 0 | I17: 0
A18: Traslado externo | B18: 500 | C18: 0 | D18: 0 | E18: 0 | F18: 0 | G18: 0 | H18: 0 | I18: 0
A19: Revisión de expediente de convalidación | B19: 250 | C19: 0 | D19: 0 | E19: 0 | F19: 0 | G19: 0 | H19: 0 | I19: 0
A20: Evaluación de recuperación | B20: 150 | C20: 0 | D20: 0 | E20: 0 | F20: 0 | G20: 0 | H20: 0 | I20: 0
A21: Evaluación extraordinaria | B21: 80 | C21: 0 | D21: 0 | E21: 0 | F21: 0 | G21: 0 | H21: 0 | I21: 0
A22: Certificado progresivo anual de estudios | B22: 350 | C22: 0 | D22: 0 | E22: 0 | F22: 0 | G22: 0 | H22: 0 | I22: 0
A23: Certificación modular | B23: 200 | C23: 0 | D23: 0 | E23: 0 | F23: 0 | G23: 0 | H23: 0 | I23: 0
A24: Duplicado de grado de bachiller | B24: 1500 | C24: 0 | D24: 0 | E24: 0 | F24: 0 | G24: 0 | H24: 0 | I24: 0
A25: Duplicado de título profesional | B25: 1500 | C25: 0 | D25: 0 | E25: 0 | F25: 0 | G25: 0 | H25: 0 | I25: 0
A26: Rectificación de nombres y apellidos | B26: 1000 | C26: 0 | D26: 0 | E26: 0 | F26: 0 | G26: 0 | H26: 0 | I26: 0
A28: Los conceptos precedentes mantienen tarifa aprobada en el MPA, pero no generan ingresos proyectados. Su activación exige sustento de demanda y actualización coordinada del F10A y del tarifario institucional.

Sheet DOCENTES
A1: PRESUPUESTO DE REMUNERACIONES Y BENEFICIOS – DOCENTES
A3: Concepto | B3: Base / criterio | C3: 2026 | D3: 2027 | E3: 2028 | F3: 2029 | G3: 2030 | H3: 2031 | I3: 2032
A4: Docentes a tiempo completo | B4: Distribución interna del presupuesto | C4: 17688 | D4: 88589 | E4: 159341 | F4: 212554 | G4: 212554 | H4: 212554 | I4: 212554
A5: Docentes a tiempo parcial | B5: Carga lectiva y secciones | C5: 19899 | D5: 99662 | E5: 179258 | F5: 239123 | G5: 239123 | H5: 239123 | I5: 239123
A6: Instructores y evaluadores | B6: Talleres, laboratorios y evaluación | C6: 6633 | D6: 33221 | E6: 59753 | F6: 79707 | G6: 79707 | H6: 79707 | I6: 79707
A7: Docente-tutor de alternancia y embarco (horas no lectivas) | B7: Planificación, seguimiento, revisión de evidencias, debriefing, evaluación y cierre | C7: =SUM(C4:C6) -> 44220 | D7: 221472 | E7: 398352 | F7: 531384 | G7: 531384 | H7: 531384 | I7: 531384
A8: TOTAL POR AÑO | C8: =SUM(C4:C7) -> 88440 | D8: 442944 | E8: 796704 | F8: 1062768 | G8: 1062768 | H8: 1062768 | I8: 1062768
A9: La función de docente-tutor se asigna entre docentes P05 y cuenta con horas no lectivas diferenciadas. Se presupuestan dos tutores (uno por programa) desde el inicio de la formación embarcada/alternancia de la primera cohorte. Los costos de movilidad, TRB, supervisión y convenios permanecen en ALTERNANCIA_EFSRT.

Sheet PERSONAL
A1: PRESUPUESTO DE PERSONAL DIRECTIVO, ADMINISTRATIVO Y OPERATIVO – SEGÚN MPP
A3: Concepto | B3: Base / criterio | C3: 2026 | D3: 2027 | E3: 2028 | F3: 2029 | G3: 2030 | H3: 2031 | I3: 2032
A4: Personal directivo | B4: P01 Dirección General, P03 Jefatura de Unidad Académica y P09 Administración | C4: =HONORARIOS_MPP!K19 -> 117000 | D4: =HONORARIOS_MPP!L19 -> 234000 | E4: =HONORARIOS_MPP!M19 -> 234000 | F4: =HONORARIOS_MPP!N19 -> 252000 | G4: =HONORARIOS_MPP!O19 -> 252000 | H4: =HONORARIOS_MPP!P19 -> 270000 | I4: =HONORARIOS_MPP!Q19 -> 270000
A5: Personal administrativo | B5: P02; P04 CNP; P04 CIM; P06; P13; y otros administrativos/soporte | C5: =HONORARIOS_MPP!K20 -> 219000 | D5: =HONORARIOS_MPP!L20 -> 438000 | E5: =HONORARIOS_MPP!M20 -> 438000 | F5: =HONORARIOS_MPP!N20 -> 510000 | G5: =HONORARIOS_MPP!O20 -> 510000 | H5: =HONORARIOS_MPP!P20 -> 561600 | I5: =HONORARIOS_MPP!Q20 -> 561600
A6: Personal operativo y/o servicios | B6: Servicios especializados P12/P15/P16/P17 y otros operativos; excluye P18/P19 | C6: =HONORARIOS_MPP!K21 -> 72000 | D6: =HONORARIOS_MPP!L21 -> 144000 | E6: =HONORARIOS_MPP!M21 -> 144000 | F6: =HONORARIOS_MPP!N21 -> 180000 | G6: =HONORARIOS_MPP!O21 -> 180000 | H6: =HONORARIOS_MPP!P21 -> 216000 | I6: =HONORARIOS_MPP!Q21 -> 216000
A7: TOTAL POR AÑO | C7: =SUM(C4:C6) -> 408000 | D7: 816000 | E7: 816000 | F7: 942000 | G7: 942000 | H7: 1047600 | I7: 1047600
A9: El detalle mensual y anual se encuentra en HONORARIOS_MPP. 2026 corresponde a seis meses. Los puestos clave se individualizan; los demás se presupuestan de forma global conforme al MPP. La seguridad P18/P19 se mantiene en SEGURIDAD_VIGILANCIA para evitar duplicidad.

Sheet CAPACITACION
A1: PRESUPUESTO DE CAPACITACIÓN Y ACTUALIZACIÓN
A3: Concepto | B3: Base / criterio | C3: 2026 | D3: 2027 | E3: 2028 | F3: 2029 | G3: 2030 | H3: 2031 | I3: 2032
A4: Capacitación docente | B4: STCW, simulación, evaluación e investigación | C4: 1200 | D4: 3000 | E4: 5500 | F4: 5500 | G4: 5500 | H4: 5500 | I4: 5500
A5: Capacitación directiva/administrativa | B5: Gestión, calidad, seguridad y normativa | C5: 800 | D5: 2000 | E5: 3500 | F5: 3500 | G5: 3500 | H5: 3500 | I5: 3500
A6: TOTAL POR AÑO | C6: =SUM(C4:C5) -> 2000 | D6: 5000 | E6: 9000 | F6: 9000 | G6: 9000 | H6: 9000 | I6: 9000

Sheet SERVICIOS_BASICOS
A1: PRESUPUESTO DE SERVICIOS BÁSICOS
A3: Concepto | B3: Base / criterio | C3: 2026 | D3: 2027 | E3: 2028 | F3: 2029 | G3: 2030 | H3: 2031 | I3: 2032
A4: Energía eléctrica | B4: 2026 medio año; laboratorios y talleres | C4: 4000 | D4: 9000 | E4: 12000 | F4: 15000 | G4: 18000 | H4: 21000 | I4: 24000
A5: Agua y saneamiento | B5: Consumo institucional | C5: 1500 | D5: 3000 | E5: 4000 | F5: 5000 | G5: 6000 | H5: 7000 | I5: 8000
A6: Internet y telefonía | B6: Conectividad institucional | C6: 4000 | D6: 8000 | E6: 9000 | F6: 10000 | G6: 11000 | H6: 12000 | I6: 13000
A7: Servidor, nube y respaldos | B7: Infraestructura digital | C7: 2500 | D7: 4000 | E7: 5000 | F7: 6000 | G7: 7000 | H7: 8000 | I7: 9000
A8: TOTAL POR AÑO | C8: =SUM(C4:C7) -> 12000 | D8: 24000 | E8: 30000 | F8: 36000 | G8: 42000 | H8: 48000 | I8: 54000

Sheet ALQUILERES
A1: PRESUPUESTO DE ALQUILERES
A3: Concepto | B3: Base / criterio | C3: 2026 | D3: 2027 | E3: 2028 | F3: 2029 | G3: 2030 | H3: 2031 | I3: 2032
A4: Alquiler del local | B4: S/10 000 mensual; 2026 medio año | C4: 60000 | D4: 120000 | E4: 120000 | F4: 120000 | G4: 120000 | H4: 120000 | I4: 120000
A5: Mantenimiento contractual | B5: S/180 mensual; 2026 medio año | C5: 1080 | D5: 2160 | E5: 2160 | F5: 2160 | G5: 2160 | H5: 2160 | I5: 2160
A6: Arbitrios | B6: S/750 anual; 2026 medio año | C6: 375 | D6: 750 | E6: 750 | F6: 750 | G6: 750 | H6: 750 | I6: 750
A7: TOTAL POR AÑO | C7: =SUM(C4:C6) -> 61455 | D7: 122910 | E7: 122910 | F7: 122910 | G7: 122910 | H7: 122910 | I7: 122910
A9: El alquiler de 2026 corresponde a seis meses. Desde 2027 hasta 2032 se mantiene el monto anual de S/122 910.

Sheet TOPICO
A1: PRESUPUESTO DE TÓPICO Y ATENCIÓN BÁSICA DE EMERGENCIAS
A3: Concepto | B3: Base / criterio | C3: 2026 | D3: 2027 | E3: 2028 | F3: 2029 | G3: 2030 | H3: 2031 | I3: 2032
A4: Equipamiento y reposición | B4: Camilla, botiquín e instrumental | C4: 3000 | D4: 3000 | E4: 2000 | F4: 2000 | G4: 2000 | H4: 2000 | I4: 2000
A5: Medicamentos e insumos | B5: Consumo recurrente | C5: 2000 | D5: 6000 | E5: 9000 | F5: 11000 | G5: 13000 | H5: 15000 | I5: 17000
A6: Campañas y primeros auxilios | B6: Prevención y capacitación | C6: 1000 | D6: 3000 | E6: 4000 | F6: 5000 | G6: 5000 | H6: 5000 | I6: 5000
A7: TOTAL POR AÑO | C7: =SUM(C4:C6) -> 6000 | D7: 12000 | E7: 15000 | F7: 18000 | G7: 20000 | H7: 22000 | I7: 24000

Sheet SERVICIOS_EDUCACIONALES
A1: PRESUPUESTO DE SERVICIOS EDUCACIONALES COMPLEMENTARIOS
A3: Concepto | B3: Base / criterio | C3: 2026 | D3: 2027 | E3: 2028 | F3: 2029 | G3: 2030 | H3: 2031 | I3: 2032
A4: Psicopedagogía | B4: Materiales, campañas y atenciones | C4: 3000 | D4: 6000 | E4: 8000 | F4: 10000 | G4: 12000 | H4: 14000 | I4: 16000
A5: Servicio social | B5: Orientación, campañas y ayudas | C5: 2000 | D5: 5000 | E5: 7000 | F5: 9000 | G5: 11000 | H5: 13000 | I5: 15000
A6: Tutoría y prevención | B6: Tutoría, convivencia y prevención | C6: 3000 | D6: 6000 | E6: 8000 | F6: 10000 | G6: 12000 | H6: 14000 | I6: 16000
A7: Accesibilidad y bienestar | B7: Materiales y acciones inclusivas | C7: 2000 | D7: 3000 | E7: 5000 | F7: 6000 | G7: 7000 | H7: 7000 | I7: 8000
A8: TOTAL POR AÑO | C8: =SUM(C4:C7) -> 10000 | D8: 20000 | E8: 28000 | F8: 35000 | G8: 42000 | H8: 48000 | I8: 55000

Sheet MANTENIMIENTO
A1: PRESUPUESTO DEL PLAN DE MANTENIMIENTO
A3: Concepto | B3: Base / criterio | C3: 2026 | D3: 2027 | E3: 2028 | F3: 2029 | G3: 2030 | H3: 2031 | I3: 2032
A4: Infraestructura y servicios generales | B4: Mantenimiento preventivo y correctivo | C4: 8000 | D4: 15000 | E4: 20000 | F4: 25000 | G4: 30000 | H4: 35000 | I4: 40000
A5: Laboratorios, talleres y equipos | B5: Mantenimiento técnico y calibración | C5: 7000 | D5: 10000 | E5: 15000 | F5: 25000 | G5: 30000 | H5: 35000 | I5: 40000
A6: TIC y EVA | B6: Equipos, redes y soporte | C6: 3000 | D6: 5000 | E6: 7000 | F6: 10000 | G6: 12000 | H6: 13000 | I6: 15000
A7: Equipos de seguridad | B7: Extintores, alarmas y señalización | C7: 2000 | D7: 5000 | E7: 8000 | F7: 10000 | G7: 13000 | H7: 12000 | I7: 15000
A8: TOTAL POR AÑO | C8: =SUM(C4:C7) -> 20000 | D8: 35000 | E8: 50000 | F8: 70000 | G8: 85000 | H8: 95000 | I8: 110000

Sheet SEGUIMIENTO_EGRESADOS
A1: PRESUPUESTO DE SEGUIMIENTO AL EGRESADO
A3: Concepto | B3: Base / criterio | C3: 2026 | D3: 2027 | E3: 2028 | F3: 2029 | G3: 2030 | H3: 2031 | I3: 2032
A4: Sistema y encuestas | B4: Preparación desde 2029 | C4: 0 | D4: 0 | E4: 0 | F4: 3000 | G4: 7000 | H4: 8000 | I4: 9000
A5: Estudios de empleadores | B5: Encuestas y análisis | C5: 0 | D5: 0 | E5: 0 | F5: 2000 | G5: 5000 | H5: 7000 | I5: 8000
A6: Eventos y actualización | B6: Red de egresados | C6: 0 | D6: 0 | E6: 0 | F6: 3000 | G6: 8000 | H6: 10000 | I6: 13000
A7: TOTAL POR AÑO | C7: =SUM(C4:C6) -> 0 | D7: 0 | E7: 0 | F7: 8000 | G7: 20000 | H7: 25000 | I7: 30000

Sheet SEGURIDAD_VIGILANCIA
A1: PRESUPUESTO DE SEGURIDAD Y VIGILANCIA
A3: Concepto | B3: Base / criterio | C3: 2026 | D3: 2027 | E3: 2028 | F3: 2029 | G3: 2030 | H3: 2031 | I3: 2032
A4: Servicio de vigilancia y control | B4: 2026 medio año | C4: 6000 | D4: 12000 | E4: 15000 | F4: 18000 | G4: 21000 | H4: 24000 | I4: 27000
A5: CCTV, alarmas y accesos | B5: Mantenimiento y reposición | C5: 3000 | D5: 6000 | E5: 7000 | F5: 8000 | G5: 9000 | H5: 10000 | I5: 11000
A6: SST, IPER y simulacros | B6: Evaluaciones y ejercicios | C6: 3000 | D6: 6000 | E6: 8000 | F6: 10000 | G6: 12000 | H6: 14000 | I6: 16000
A7: TOTAL POR AÑO | C7: =SUM(C4:C6) -> 12000 | D7: 24000 | E7: 30000 | F7: 36000 | G7: 42000 | H7: 48000 | I7: 54000

Sheet EVA
A1: PRESUPUESTO DE EVA Y SOPORTE DIGITAL
A3: Concepto | B3: Base / criterio | C3: 2026 | D3: 2027 | E3: 2028 | F3: 2029 | G3: 2030 | H3: 2031 | I3: 2032
A4: Hosting, dominio y certificados | B4: Servicios web | C4: 2000 | D4: 3000 | E4: 3500 | F4: 4000 | G4: 4500 | H4: 5000 | I4: 5500
A5: LMS y soporte | B5: Administración y capacitación | C5: 4000 | D5: 7000 | E5: 8500 | F5: 10000 | G5: 11500 | H5: 13000 | I5: 14500
A6: Licencias académicas | B6: Herramientas no simuladores | C6: 2000 | D6: 4000 | E6: 5000 | F6: 6000 | G6: 7000 | H6: 8000 | I6: 9000
A7: Respaldo y ciberseguridad | B7: Continuidad y protección | C7: 2000 | D7: 4000 | E7: 5000 | F7: 6000 | G7: 7000 | H7: 8000 | I7: 9000
A8: TOTAL POR AÑO | C8: =SUM(C4:C7) -> 10000 | D8: 18000 | E8: 22000 | F8: 26000 | G8: 30000 | H8: 34000 | I8: 38000
A10: Los simuladores no se incluyen en EVA: su uso se presupuestó en ALTERNANCIA_EFSRT mediante convenios.

Sheet INSERCION_LABORAL
A1: PRESUPUESTO DE INTERMEDIACIÓN E INSERCIÓN LABORAL
A3: Concepto | B3: Base / criterio | C3: 2026 | D3: 2027 | E3: 2028 | F3: 2029 | G3: 2030 | H3: 2031 | I3: 2032
A4: Bolsa de trabajo | B4: Gestión y actualización | C4: 1500 | D4: 3000 | E4: 4000 | F4: 5000 | G4: 6000 | H4: 7000 | I4: 8000
A5: Ferias y empleadores | B5: Eventos y coordinación | C5: 1500 | D5: 3000 | E5: 5000 | F5: 7000 | G5: 9000 | H5: 11000 | I5: 13000
A6: Convenios y seguimiento | B6: Gestión con empresas | C6: 1000 | D6: 2000 | E6: 3000 | F6: 4000 | G6: 5000 | H6: 6000 | I6: 7000
A7: TOTAL POR AÑO | C7: =SUM(C4:C6) -> 4000 | D7: 8000 | E7: 12000 | F7: 16000 | G7: 20000 | H7: 24000 | I7: 28000

Sheet PUBLICIDAD_MARKETING
A1: PRESUPUESTO DE PUBLICIDAD Y ADMISIÓN
A3: Concepto | B3: Base / criterio | C3: 2026 | D3: 2027 | E3: 2028 | F3: 2029 | G3: 2030 | H3: 2031 | I3: 2032
A4: Publicidad digital | B4: Campañas por programa | C4: 20000 | D4: 30000 | E4: 38000 | F4: 45000 | G4: 52000 | H4: 59000 | I4: 66000
A5: Materiales informativos | B5: Trípticos, folders y piezas | C5: 5000 | D5: 7000 | E5: 8000 | F5: 9000 | G5: 10000 | H5: 11000 | I5: 12000
A6: Eventos de admisión | B6: Charlas, visitas y jornadas | C6: 5000 | D6: 8000 | E6: 9000 | F6: 11000 | G6: 13000 | H6: 15000 | I6: 17000
A7: TOTAL POR AÑO | C7: =SUM(C4:C6) -> 30000 | D7: 45000 | E7: 55000 | F7: 65000 | G7: 75000 | H7: 85000 | I7: 95000

Sheet TITULACION
A1: PRESUPUESTO DE TITULACIÓN
A3: Concepto | B3: Base / criterio | C3: 2026 | D3: 2027 | E3: 2028 | F3: 2029 | G3: 2030 | H3: 2031 | I3: 2032
A4: Gestión documental y registro | B4: Desde los primeros egresados | C4: 0 | D4: 0 | E4: 0 | F4: 0 | G4: 10000 | H4: 15000 | I4: 18000
A5: Jurados, asesoría y evaluación | B5: Procesos de grado/título | C5: 0 | D5: 0 | E5: 0 | F5: 0 | G5: 12000 | H5: 18000 | I5: 22000
A6: Ceremonias y emisión | B6: Materiales y eventos | C6: 0 | D6: 0 | E6: 0 | F6: 0 | G6: 8000 | H6: 12000 | I6: 15000
A7: TOTAL POR AÑO | C7: =SUM(C4:C6) -> 0 | D7: 0 | E7: 0 | F7: 0 | G7: 30000 | H7: 45000 | I7: 55000

Sheet ALTERNANCIA_EFSRT
A1: PRESUPUESTO DE ALTERNANCIA, SIMULADORES Y EMBARCACIONES POR CONVENIO
A3: Concepto | B3: Base / criterio | C3: 2026 | D3: 2027 | E3: 2028 | F3: 2029 | G3: 2030 | H3: 2031 | I3: 2032
A4: Convenios y coordinación | B4: Gestión operativa de convenios y centros; excluye remuneración P06 | C4: 8000 | D4: 15000 | E4: 20000 | F4: 30000 | G4: 35000 | H4: 40000 | I4: 45000
A5: Uso de simuladores por convenio | B5: Sin adquisición | C5: 12000 | D5: 25000 | E5: 40000 | F5: 70000 | G5: 90000 | H5: 100000 | I5: 110000
A6: Plazas y uso de embarcaciones | B6: Sin adquisición | C6: 0 | D6: 10000 | E6: 30000 | F6: 100000 | G6: 220000 | H6: 240000 | I6: 260000
A7: Seguros, EPP y exámenes médicos | B7: Estudiantes en alternancia | C7: 8000 | D7: 18000 | E7: 30000 | F7: 50000 | G7: 70000 | H7: 75000 | I7: 80000
A8: Supervisión, movilidad y TRB | B8: Movilidad, visitas, TRB y evaluación; excluye honorarios del docente-tutor | C8: 12000 | D8: 22000 | E8: 30000 | F8: 50000 | G8: 65000 | H8: 70000 | I8: 75000
A9: TOTAL POR AÑO | C9: =SUM(C4:C8) -> 40000 | D9: 90000 | E9: 150000 | F9: 300000 | G9: 480000 | H9: 525000 | I9: 570000
A11: CNP: 2 048 horas y 64 créditos en empresa u otros ámbitos. CIM: 1 472 horas y 46 créditos. No se adquieren simuladores ni embarcaciones; se cubre su uso mediante convenios. La remuneración del P06 se registra en PERSONAL/HONORARIOS_MPP y la del docente-tutor en DOCENTES; esta hoja contiene únicamente costos operativos de alternancia, evitando doble contabilización.

Sheet INVESTIGACION
A1: PRESUPUESTO DE INVESTIGACIÓN APLICADA E INNOVACIÓN
A3: Concepto | B3: Base / criterio | C3: 2026 | D3: 2027 | E3: 2028 | F3: 2029 | G3: 2030 | H3: 2031 | I3: 2032
A4: Fondos para proyectos | B4: Cinco líneas institucionales | C4: 10000 | D4: 22000 | E4: 32000 | F4: 42000 | G4: 52000 | H4: 60000 | I4: 68000
A5: Software de similitud | B5: Integridad científica | C5: 3000 | D5: 5000 | E5: 6000 | F5: 7000 | G5: 8000 | H5: 9000 | I5: 10000
A6: Repositorio y publicaciones | B6: Preservación y difusión | C6: 3000 | D6: 7000 | E6: 9000 | F6: 11000 | G6: 13000 | H6: 15000 | I6: 17000
A7: Jornadas y eventos | B7: Semilleros y transferencia | C7: 4000 | D7: 8000 | E7: 10000 | F7: 13000 | G7: 16000 | H7: 18000 | I7: 20000
A8: Asesorías y prototipos | B8: Pruebas, materiales y validación | C8: 5000 | D8: 8000 | E8: 13000 | F8: 17000 | G8: 21000 | H8: 23000 | I8: 25000
A9: TOTAL POR AÑO | C9: =SUM(C4:C8) -> 25000 | D9: 50000 | E9: 70000 | F9: 90000 | G9: 110000 | H9: 125000 | I9: 140000

Sheet INFRAESTRUCTURA
A1: PRESUPUESTO DE INFRAESTRUCTURA Y ADECUACIONES
A3: Concepto | B3: Base / criterio | C3: 2026 | D3: 2027 | E3: 2028 | F3: 2029 | G3: 2030 | H3: 2031 | I3: 2032
A4: Adecuaciones del local | B4: Aulas, oficinas y circulaciones | C4: 20000 | D4: 10000 | E4: 8000 | F4: 10000 | G4: 8000 | H4: 8000 | I4: 10000
A5: Accesibilidad y seguridad | B5: Rutas y adecuaciones | C5: 10000 | D5: 5000 | E5: 5000 | F5: 5000 | G5: 5000 | H5: 5000 | I5: 5000
A6: Laboratorios y talleres | B6: Instalaciones y seguridad | C6: 15000 | D6: 10000 | E6: 8000 | F6: 15000 | G6: 12000 | H6: 12000 | I6: 15000
A7: Redes y soporte físico | B7: Cableado y energía regulada | C7: 5000 | D7: 5000 | E7: 4000 | F7: 5000 | G7: 5000 | H7: 5000 | I7: 5000
A8: TOTAL POR AÑO | C8: =SUM(C4:C7) -> 50000 | D8: 30000 | E8: 25000 | F8: 35000 | G8: 30000 | H8: 30000 | I8: 35000

Sheet EQUIPAMIENTO
A1: PRESUPUESTO DE EQUIPAMIENTO Y RECURSOS PARA EL APRENDIZAJE
A3: Concepto | B3: Base / criterio | C3: 2026 | D3: 2027 | E3: 2028 | F3: 2029 | G3: 2030 | H3: 2031 | I3: 2032
A4: Computadoras y TIC | B4: Aulas, oficinas y laboratorios | C4: 30000 | D4: 35000 | E4: 30000 | F4: 40000 | G4: 35000 | H4: 30000 | I4: 35000
A5: Herramientas y equipos mecánicos | B5: Talleres CIM | C5: 30000 | D5: 40000 | E5: 30000 | F5: 50000 | G5: 45000 | H5: 40000 | I5: 40000
A6: Equipos eléctricos y automatización | B6: Laboratorios CIM | C6: 25000 | D6: 30000 | E6: 25000 | F6: 35000 | G6: 30000 | H6: 25000 | I6: 30000
A7: Equipos náuticos y seguridad | B7: Laboratorios CNP | C7: 20000 | D7: 25000 | E7: 20000 | F7: 30000 | G7: 25000 | H7: 25000 | I7: 25000
A8: Mobiliario y recursos generales | B8: Aulas, biblioteca y oficinas | C8: 15000 | D8: 20000 | E8: 15000 | F8: 25000 | G8: 25000 | H8: 20000 | I8: 20000
A9: TOTAL POR AÑO | C9: =SUM(C4:C8) -> 120000 | D9: 150000 | E9: 120000 | F9: 180000 | G9: 160000 | H9: 140000 | I9: 150000
A11: Se excluyen simuladores y embarcaciones, porque serán proporcionados mediante convenios.

Sheet BIBLIOTECA
A1: PRESUPUESTO DE RECURSOS BIBLIOGRÁFICOS
A3: Concepto | B3: Base / criterio | C3: 2026 | D3: 2027 | E3: 2028 | F3: 2029 | G3: 2030 | H3: 2031 | I3: 2032
A4: Libros y manuales técnicos | B4: CNP, CIM e investigación | C4: 10000 | D4: 15000 | E4: 17000 | F4: 19000 | G4: 21000 | H4: 23000 | I4: 25000
A5: Normas y publicaciones marítimas | B5: OMI, seguridad y máquinas | C5: 7000 | D5: 9000 | E5: 10000 | F5: 11000 | G5: 12000 | H5: 13000 | I5: 14000
A6: Bases de datos y biblioteca virtual | B6: Suscripciones y soporte | C6: 6000 | D6: 8000 | E6: 9000 | F6: 10000 | G6: 11000 | H6: 12000 | I6: 13000
A7: Revistas y actualización | B7: Publicaciones y reposición | C7: 2000 | D7: 3000 | E7: 4000 | F7: 5000 | G7: 6000 | H7: 7000 | I7: 8000
A8: TOTAL POR AÑO | C8: =SUM(C4:C7) -> 25000 | D8: 35000 | E8: 40000 | F8: 45000 | G8: 50000 | H8: 55000 | I8: 60000

Sheet CONTINGENCIAS
A1: PRESUPUESTO DE CONTINGENCIAS Y RIESGO DE COBRANZA
A3: Concepto | B3: Base | C3: 2026 | D3: 2027 | E3: 2028 | F3: 2029 | G3: 2030 | H3: 2031 | I3: 2032
A4: Reserva por morosidad | B4: 0,5% de ingresos | C4: ='F10 EMPSR'!E7*SUPUESTOS!$C$41 -> 6737.4 | D4: ='F10 EMPSR'!F7*SUPUESTOS!$C$41 -> 30162.33 | E4: ='F10 EMPSR'!G7*SUPUESTOS!$C$41 -> 48975.66 | F4: ='F10 EMPSR'!H7*SUPUESTOS!$C$41 -> 64281.42 | G4: ='F10 EMPSR'!I7*SUPUESTOS!$C$41 -> 77675.52 | H4: ='F10 EMPSR'!J7*SUPUESTOS!$C$41 -> 77675.52 | I4: ='F10 EMPSR'!K7*SUPUESTOS!$C$41 -> 77675.52
A5: Contingencias operativas | B5: 0,5% de ingresos | C5: ='F10 EMPSR'!E7*SUPUESTOS!$C$42 -> 6737.4 | D5: ='F10 EMPSR'!F7*SUPUESTOS!$C$42 -> 30162.33 | E5: ='F10 EMPSR'!G7*SUPUESTOS!$C$42 -> 48975.66 | F5: ='F10 EMPSR'!H7*SUPUESTOS!$C$42 -> 64281.42 | G5: ='F10 EMPSR'!I7*SUPUESTOS!$C$42 -> 77675.52 | H5: ='F10 EMPSR'!J7*SUPUESTOS!$C$42 -> 77675.52 | I5: ='F10 EMPSR'!K7*SUPUESTOS!$C$42 -> 77675.52
A6: TOTAL POR AÑO | B6: 1% de ingresos | C6: =SUM(C4:C5) -> 13474.8 | D6: 60324.66 | E6: 97951.32 | F6: 128562.84 | G6: 155351.04 | H6: 155351.04 | I6: 155351.04

Sheet IMPUESTOS
A1: PROYECCIÓN DE IMPUESTO A LA RENTA – RÉGIMEN GENERAL
A3: Concepto | B3: Base | C3: 2026 | D3: 2027 | E3: 2028 | F3: 2029 | G3: 2030 | H3: 2031 | I3: 2032
A4: Ingresos | B4: Vínculo F10A | C4: ='F10 EMPSR'!E7 -> 1347480 | D4: ='F10 EMPSR'!F7 -> 6032466 | E4: ='F10 EMPSR'!G7 -> 9795132 | F4: ='F10 EMPSR'!H7 -> 12856284 | G4: ='F10 EMPSR'!I7 -> 15535104 | H4: ='F10 EMPSR'!J7 -> 15535104 | I4: ='F10 EMPSR'!K7 -> 15535104
A5: Egresos antes de impuestos | B5: Personal + bienes + inversiones + investigación + financieros + otros | C5: ='F10 EMPSR'!E19+'F10 EMPSR'!E29+'F10 EMPSR'!E113+'F10 EMPSR'!E143+'F10 EMPSR'!E145+'F10 EMPSR'!E155 -> 937369.8 | D5: ='F10 EMPSR'!F19+'F10 EMPSR'!F29+'F10 EMPSR'!F113+'F10 EMPSR'!F143+'F10 EMPSR'!F145+'F10 EMPSR'!F155 -> 1988178.66 | E5: ='F10 EMPSR'!G19+'F10 EMPSR'!G29+'F10 EMPSR'!G113+'F10 EMPSR'!G143+'F10 EMPSR'!G145+'F10 EMPSR'!G155 -> 2489565.32 | F5: ='F10 EMPSR'!H19+'F10 EMPSR'!H29+'F10 EMPSR'!H113+'F10 EMPSR'!H143+'F10 EMPSR'!H145+'F10 EMPSR'!H155 -> 3225240.84 | G5: ='F10 EMPSR'!I19+'F10 EMPSR'!I29+'F10 EMPSR'!I113+'F10 EMPSR'!I143+'F10 EMPSR'!I145+'F10 EMPSR'!I155 -> 3528029.04 | H5: ='F10 EMPSR'!J19+'F10 EMPSR'!J29+'F10 EMPSR'!J113+'F10 EMPSR'!J143+'F10 EMPSR'!J145+'F10 EMPSR'!J155 -> 3746629.04 | I5: ='F10 EMPSR'!K19+'F10 EMPSR'!K29+'F10 EMPSR'!K113+'F10 EMPSR'!K143+'F10 EMPSR'!K145+'F10 EMPSR'!K155 -> 3895629.04
A6: Utilidad estimada | B6: Ingresos - egresos antes de impuestos | C6: =C4-C5 -> 410110.2 | D6: 4044287.34 | E6: 7305566.68 | F6: 9631043.16 | G6: 12007074.96 | H6: 11788474.96 | I6: 11639474.96
A7: Pagos a cuenta | B7: 1,5% de ingresos | C7: =C4*SUPUESTOS!$C$18 -> 20212.2 | D7: =D4*SUPUESTOS!$C$18 -> 90486.99 | E7: =E4*SUPUESTOS!$C$18 -> 146926.98 | F7: =F4*SUPUESTOS!$C$18 -> 192844.26 | G7: =G4*SUPUESTOS!$C$18 -> 233026.56 | H7: =H4*SUPUESTOS!$C$18 -> 233026.56 | I7: =I4*SUPUESTOS!$C$18 -> 233026.56
A8: Impuesto anual | B8: 29,5% de utilidad positiva | C8: =MAX(0,C6*SUPUESTOS!$C$17) -> 120982.509 | D8: =MAX(0,D6*SUPUESTOS!$C$17) -> 1193064.765 | E8: =MAX(0,E6*SUPUESTOS!$C$17) -> 2155142.171 | F8: =MAX(0,F6*SUPUESTOS!$C$17) -> 2841157.732 | G8: =MAX(0,G6*SUPUESTOS!$C$17) -> 3542087.113 | H8: =MAX(0,H6*SUPUESTOS!$C$17) -> 3477600.113 | I8: =MAX(0,I6*SUPUESTOS!$C$17) -> 3433645.113
A9: TOTAL DESEMBOLSO | B9: Mayor entre pago a cuenta e impuesto anual | C9: =MAX(C7,C8) -> 120982.509 | D9: 1193064.765 | E9: 2155142.171 | F9: 2841157.732 | G9: 3542087.113 | H9: 3477600.113 | I9: 3433645.113

Sheet PRESUPUESTO_PLANES
A1: MATRIZ DE PRESUPUESTOS PARA INCORPORAR EN LOS PLANES INSTITUCIONALES
A4: Plan / documento | B4: Hoja de detalle | C4: Componente F10A | D4: 2026 | E4: 2027 | F4: 2028 | G4: 2029 | H4: 2030 | I4: 2031 | J4: 2032 | K4: Criterio | L4: Responsable
A5: Plan de Capacitación | B5: CAPACITACION | C5: 1. Personal | D5: =CAPACITACION!C6 -> 2000 | E5: =CAPACITACION!D6 -> 5000 | F5: =CAPACITACION!E6 -> 9000 | G5: =CAPACITACION!F6 -> 9000 | H5: =CAPACITACION!G6 -> 9000 | I5: =CAPACITACION!H6 -> 9000 | J5: =CAPACITACION!I6 -> 9000 | K5: Actividades y participantes | L5: Unidad Académica
A6: Plan de Mantenimiento | B6: MANTENIMIENTO | C6: 2. Bienes y servicios | D6: =MANTENIMIENTO!C8 -> 20000 | E6: =MANTENIMIENTO!D8 -> 35000 | F6: =MANTENIMIENTO!E8 -> 50000 | G6: =MANTENIMIENTO!F8 -> 70000 | H6: =MANTENIMIENTO!G8 -> 85000 | I6: =MANTENIMIENTO!H8 -> 95000 | J6: =MANTENIMIENTO!I8 -> 110000 | K6: Activos, frecuencia y costo | L6: Administración
A7: Plan de Bienestar | B7: SERVICIOS_EDUCACIONALES | C7: 2. Bienes y servicios | D7: =SERVICIOS_EDUCACIONALES!C8 -> 10000 | E7: =SERVICIOS_EDUCACIONALES!D8 -> 20000 | F7: =SERVICIOS_EDUCACIONALES!E8 -> 28000 | G7: =SERVICIOS_EDUCACIONALES!F8 -> 35000 | H7: =SERVICIOS_EDUCACIONALES!G8 -> 42000 | I7: =SERVICIOS_EDUCACIONALES!H8 -> 48000 | J7: =SERVICIOS_EDUCACIONALES!I8 -> 55000 | K7: Psicología, servicio social y tutoría | L7: Bienestar
A8: Plan de Tópico | B8: TOPICO | C8: 2. Bienes y servicios | D8: =TOPICO!C7 -> 6000 | E8: =TOPICO!D7 -> 12000 | F8: =TOPICO!E7 -> 15000 | G8: =TOPICO!F7 -> 18000 | H8: =TOPICO!G7 -> 20000 | I8: =TOPICO!H7 -> 22000 | J8: =TOPICO!I7 -> 24000 | K8: Equipos e insumos | L8: Salud
A9: Plan de Seguridad | B9: SEGURIDAD_VIGILANCIA | C9: 2. Bienes y servicios | D9: =SEGURIDAD_VIGILANCIA!C7 -> 12000 | E9: =SEGURIDAD_VIGILANCIA!D7 -> 24000 | F9: =SEGURIDAD_VIGILANCIA!E7 -> 30000 | G9: =SEGURIDAD_VIGILANCIA!F7 -> 36000 | H9: =SEGURIDAD_VIGILANCIA!G7 -> 42000 | I9: =SEGURIDAD_VIGILANCIA!H7 -> 48000 | J9: =SEGURIDAD_VIGILANCIA!I7 -> 54000 | K9: Vigilancia, CCTV, IPER y simulacros | L9: Administración
A10: Plan EVA | B10: EVA | C10: 2. Bienes y servicios | D10: =EVA!C8 -> 10000 | E10: =EVA!D8 -> 18000 | F10: =EVA!E8 -> 22000 | G10: =EVA!F8 -> 26000 | H10: =EVA!G8 -> 30000 | I10: =EVA!H8 -> 34000 | J10: =EVA!I8 -> 38000 | K10: LMS, respaldo y soporte | L10: TIC
A11: Plan de Empleabilidad | B11: INSERCION_LABORAL | C11: 2. Bienes y servicios | D11: =INSERCION_LABORAL!C7 -> 4000 | E11: =INSERCION_LABORAL!D7 -> 8000 | F11: =INSERCION_LABORAL!E7 -> 12000 | G11: =INSERCION_LABORAL!F7 -> 16000 | H11: =INSERCION_LABORAL!G7 -> 20000 | I11: =INSERCION_LABORAL!H7 -> 24000 | J11: =INSERCION_LABORAL!I7 -> 28000 | K11: Bolsa, ferias y convenios | L11: Empleabilidad
A12: Plan de Seguimiento al Egresado | B12: SEGUIMIENTO_EGRESADOS | C12: 2. Bienes y servicios | D12: =SEGUIMIENTO_EGRESADOS!C7 -> 0 | E12: =SEGUIMIENTO_EGRESADOS!D7 -> 0 | F12: =SEGUIMIENTO_EGRESADOS!E7 -> 0 | G12: =SEGUIMIENTO_EGRESADOS!F7 -> 8000 | H12: =SEGUIMIENTO_EGRESADOS!G7 -> 20000 | I12: =SEGUIMIENTO_EGRESADOS!H7 -> 25000 | J12: =SEGUIMIENTO_EGRESADOS!I7 -> 30000 | K12: Operación desde primeros egresados | L12: Unidad Académica
A13: Plan de Embarco / Alternancia | B13: ALTERNANCIA_EFSRT | C13: 2. Otros | D13: =ALTERNANCIA_EFSRT!C9 -> 40000 | E13: =ALTERNANCIA_EFSRT!D9 -> 90000 | F13: =ALTERNANCIA_EFSRT!E9 -> 150000 | G13: =ALTERNANCIA_EFSRT!F9 -> 300000 | H13: =ALTERNANCIA_EFSRT!G9 -> 480000 | I13: =ALTERNANCIA_EFSRT!H9 -> 525000 | J13: =ALTERNANCIA_EFSRT!I9 -> 570000 | K13: Convenios, simuladores, embarcaciones, seguros y TRB | L13: EFSRT
A14: Plan de Investigación | B14: INVESTIGACION | C14: 4. Investigación e innovación | D14: =INVESTIGACION!C9 -> 25000 | E14: =INVESTIGACION!D9 -> 50000 | F14: =INVESTIGACION!E9 -> 70000 | G14: =INVESTIGACION!F9 -> 90000 | H14: =INVESTIGACION!G9 -> 110000 | I14: =INVESTIGACION!H9 -> 125000 | J14: =INVESTIGACION!I9 -> 140000 | K14: Cinco líneas y proyectos | L14: Investigación
A15: Plan de Crecimiento | B15: INFRAESTRUCTURA | C15: 3. Inversiones | D15: =INFRAESTRUCTURA!C8 -> 50000 | E15: =INFRAESTRUCTURA!D8 -> 30000 | F15: =INFRAESTRUCTURA!E8 -> 25000 | G15: =INFRAESTRUCTURA!F8 -> 35000 | H15: =INFRAESTRUCTURA!G8 -> 30000 | I15: =INFRAESTRUCTURA!H8 -> 30000 | J15: =INFRAESTRUCTURA!I8 -> 35000 | K15: Adecuaciones y ambientes | L15: Administración
A16: Plan de Equipamiento | B16: EQUIPAMIENTO | C16: 3. Inversiones | D16: =EQUIPAMIENTO!C9 -> 120000 | E16: =EQUIPAMIENTO!D9 -> 150000 | F16: =EQUIPAMIENTO!E9 -> 120000 | G16: =EQUIPAMIENTO!F9 -> 180000 | H16: =EQUIPAMIENTO!G9 -> 160000 | I16: =EQUIPAMIENTO!H9 -> 140000 | J16: =EQUIPAMIENTO!I9 -> 150000 | K16: Equipos propios, sin simuladores/embarcaciones | L16: Administración
A17: Plan de Biblioteca | B17: BIBLIOTECA | C17: 3. Inversiones | D17: =BIBLIOTECA!C8 -> 25000 | E17: =BIBLIOTECA!D8 -> 35000 | F17: =BIBLIOTECA!E8 -> 40000 | G17: =BIBLIOTECA!F8 -> 45000 | H17: =BIBLIOTECA!G8 -> 50000 | I17: =BIBLIOTECA!H8 -> 55000 | J17: =BIBLIOTECA!I8 -> 60000 | K17: Libros, normas y bases | L17: Biblioteca
A18: Plan de Admisión | B18: PUBLICIDAD_MARKETING | C18: 2. Bienes y servicios | D18: =PUBLICIDAD_MARKETING!C7 -> 30000 | E18: =PUBLICIDAD_MARKETING!D7 -> 45000 | F18: =PUBLICIDAD_MARKETING!E7 -> 55000 | G18: =PUBLICIDAD_MARKETING!F7 -> 65000 | H18: =PUBLICIDAD_MARKETING!G7 -> 75000 | I18: =PUBLICIDAD_MARKETING!H7 -> 85000 | J18: =PUBLICIDAD_MARKETING!I7 -> 95000 | K18: Campañas y costo por ingresante | L18: Admisión
A19: Plan de Titulación | B19: TITULACION | C19: 2. Otros | D19: =TITULACION!C7 -> 0 | E19: =TITULACION!D7 -> 0 | F19: =TITULACION!E7 -> 0 | G19: =TITULACION!F7 -> 0 | H19: =TITULACION!G7 -> 30000 | I19: =TITULACION!H7 -> 45000 | J19: =TITULACION!I7 -> 55000 | K19: Primeros egresados desde 2030 | L19: Unidad Académica

Sheet HONORARIOS_MPP
A1: DETALLE DE HONORARIOS / COSTO PRESUPUESTADO DEL PERSONAL SEGÚN MPP 2026-2032
D3: HONORARIO / COSTO MENSUAL PRESUPUESTADO (S/) | K3: COSTO ANUAL PRESUPUESTADO (S/)
A4: Código | B4: Puesto / agrupación | C4: Categoría F10A | D4: 2026 | E4: 2027 | F4: 2028 | G4: 2029 | H4: 2030 | I4: 2031 | J4: 2032 | K4: 2026 | L4: 2027 | M4: 2028 | N4: 2029 | O4: 2030 | P4: 2031 | Q4: 2032 | R4: Dedicación / régimen | S4: Sustento MPP | T4: Observación
B5: Meses presupuestados | D5: =SUPUESTOS!C19 -> 6 | E5: =SUPUESTOS!C20 -> 12 | F5: =SUPUESTOS!C20 -> 12 | G5: =SUPUESTOS!C20 -> 12 | H5: =SUPUESTOS!C20 -> 12 | I5: =SUPUESTOS!C20 -> 12 | J5: =SUPUESTOS!C20 -> 12
A7: P01 | B7: Director General | C7: Directivo | D7: 7500 | E7: 7500 | F7: 7500 | G7: 8000 | H7: 8000 | I7: 8500 | J7: 8500 | K7: =D7*D$5 -> 45000 | L7: 90000 | M7: 90000 | N7: 96000 | O7: 96000 | P7: 102000 | Q7: 102000 | R7: Tiempo completo / función directiva | S7: P01 Dirección General | T7: Conducción institucional y aprobación de recursos, alternancia y CBC.
A8: P03 | B8: Jefe de Unidad Académica | C8: Directivo | D8: 6500 | E8: 6500 | F8: 6500 | G8: 7000 | H8: 7000 | I8: 7500 | J8: 7500 | K8: =D8*D$5 -> 39000 | L8: 78000 | M8: 78000 | N8: 84000 | O8: 84000 | P8: 90000 | Q8: 90000 | R8: Tiempo completo / jefatura académica | S8: P03 Jefe de Unidad Académica | T8: Gestión pedagógica, curricular y de alternancia.
A9: P09 | B9: Responsable de Administración | C9: Directivo | D9: 5500 | E9: 5500 | F9: 5500 | G9: 6000 | H9: 6000 | I9: 6500 | J9: 6500 | K9: =D9*D$5 -> 33000 | L9: 66000 | M9: 66000 | N9: 72000 | O9: 72000 | P9: 78000 | Q9: 78000 | R9: Tiempo completo / gestión administrativa | S9: P09 Responsable de Administración | T9: Responsable del presupuesto, personal, compras, seguros y Formato 10A.
A10: P02 | B10: Secretaría Académica | C10: Administrativo | D10: 4000 | E10: 4000 | F10: 4000 | G10: 4500 | H10: 4500 | I10: 4800 | J10: 4800 | K10: =D10*D$5 -> 24000 | L10: 48000 | M10: 48000 | N10: 54000 | O10: 54000 | P10: 57600 | Q10: 57600 | R10: Tiempo completo | S10: P02 Secretaría Académica | T10: Registro, custodia y trazabilidad académica y de alternancia.
A11: P04-CNP | B11: Coordinación de Programa – Ciencias Náuticas Puente | C11: Administrativo | D11: 5500 | E11: 5500 | F11: 5500 | G11: 6000 | H11: 6000 | I11: 6500 | J11: 6500 | K11: =D11*D$5 -> 33000 | L11: 66000 | M11: 66000 | N11: 72000 | O11: 72000 | P11: 78000 | Q11: 78000 | R11: Tiempo completo / coordinación de programa | S11: P04 Coordinación de Programa | T11: El MPP exige una coordinación diferenciada para CNP.
A12: P04-CIM | B12: Coordinación de Programa – Ciencias de Ingeniería Máquinas | C12: Administrativo | D12: 5500 | E12: 5500 | F12: 5500 | G12: 6000 | H12: 6000 | I12: 6500 | J12: 6500 | K12: =D12*D$5 -> 33000 | L12: 66000 | M12: 66000 | N12: 72000 | O12: 72000 | P12: 78000 | Q12: 78000 | R12: Tiempo completo / coordinación de programa | S12: P04 Coordinación de Programa | T12: El MPP exige una coordinación diferenciada para CIM.
A13: P06 | B13: Responsable de Formación en Alternancia, EFSRT y Empleabilidad | C13: Administrativo | D13: 5000 | E13: 5000 | F13: 5000 | G13: 6000 | H13: 6000 | I13: 6500 | J13: 6500 | K13: =D13*D$5 -> 30000 | L13: 60000 | M13: 60000 | N13: 72000 | O13: 72000 | P13: 78000 | Q13: 78000 | R13: Tiempo completo / coordinación institucional | S13: P06 Formación en Alternancia, EFSRT y Empleabilidad | T13: Su remuneración se registra como personal; los costos operativos de alternancia se presupuestan por separado.
A14: P13 | B14: Responsable de Calidad y Gestión Documental | C14: Administrativo | D14: 4500 | E14: 4500 | F14: 4500 | G14: 5000 | H14: 5000 | I14: 5500 | J14: 5500 | K14: =D14*D$5 -> 27000 | L14: 54000 | M14: 54000 | N14: 60000 | O14: 60000 | P14: 66000 | Q14: 66000 | R14: Tiempo completo / aseguramiento de calidad | S14: P13 Calidad y Gestión Documental | T14: Control CBC, evidencias, versiones y trazabilidad de alternancia.
A15: OT-ADM | B15: Otros administrativos y soporte (P07, P08, P10, P11 y P14) | C15: Administrativo | D15: 12000 | E15: 12000 | F15: 12000 | G15: 15000 | H15: 15000 | I15: 17000 | J15: 17000 | K15: =D15*D$5 -> 72000 | L15: 144000 | M15: 144000 | N15: 180000 | O15: 180000 | P15: 204000 | Q15: 204000 | R15: Global: contratos, dedicaciones o servicios según necesidad | S15: MPP P07, P08, P10, P11 y P14 | T15: Presupuesto global; el detalle contractual se define en la matriz de contratación anual.
A16: SERV-ESP | B16: Servicios especializados (P12, P15, P16 y P17) | C16: Operativo/Servicios | D16: 8000 | E16: 8000 | F16: 8000 | G16: 10000 | H16: 10000 | I16: 12000 | J16: 12000 | K16: =D16*D$5 -> 48000 | L16: 96000 | M16: 96000 | N16: 120000 | O16: 120000 | P16: 144000 | Q16: 144000 | R16: Servicios especializados según demanda y disponibilidad | S16: MPP P12, P15, P16 y P17 | T16: Puede cubrirse por contratación laboral o prestación especializada según el MPP.
A17: OT-OPER | B17: Otros operativos y servicios generales (sin seguridad tercerizada) | C17: Operativo/Servicios | D17: 4000 | E17: 4000 | F17: 4000 | G17: 5000 | H17: 5000 | I17: 6000 | J17: 6000 | K17: =D17*D$5 -> 24000 | L17: 48000 | M17: 48000 | N17: 60000 | O17: 60000 | P17: 72000 | Q17: 72000 | R17: Global / según necesidad | S17: Soporte operativo institucional | T17: P18 y P19 no se incluyen aquí para evitar doble contabilización con SEGURIDAD_VIGILANCIA.
A19: TOTAL PERSONAL DIRECTIVO | D19: =D7+D8+D9 -> 19500 | E19: 19500 | F19: 19500 | G19: 21000 | H19: 21000 | I19: 22500 | J19: 22500 | K19: 117000 | L19: 234000 | M19: 234000 | N19: 252000 | O19: 252000 | P19: 270000 | Q19: 270000
A20: TOTAL PERSONAL ADMINISTRATIVO | D20: =D10+D11+D12+D13+D14+D15 -> 36500 | E20: 36500 | F20: 36500 | G20: 42500 | H20: 42500 | I20: 46800 | J20: 46800 | K20: 219000 | L20: 438000 | M20: 438000 | N20: 510000 | O20: 510000 | P20: 561600 | Q20: 561600
A21: TOTAL PERSONAL OPERATIVO Y/O SERVICIOS | D21: =D16+D17 -> 12000 | E21: 12000 | F21: 12000 | G21: 15000 | H21: 15000 | I21: 18000 | J21: 18000 | K21: 72000 | L21: 144000 | M21: 144000 | N21: 180000 | O21: 180000 | P21: 216000 | Q21: 216000
A22: TOTAL PERSONAL NO DOCENTE | D22: =D7+D8+D9+D10+D11+D12+D13+D14+D15+D16+D17 -> 68000 | E22: 68000 | F22: 68000 | G22: 78500 | H22: 78500 | I22: 87300 | J22: 87300 | K22: 408000 | L22: 816000 | M22: 816000 | N22: 942000 | O22: 942000 | P22: 1047600 | Q22: 1047600
A24: CRITERIO PRESUPUESTAL: los importes son costos mensuales referenciales para previsión económica. 2026 comprende seis meses y 2027-2032 años completos. El vínculo contractual definitivo puede ser laboral o por prestación de servicios, conforme al MPP. P18/P19 se financian en SEGURIDAD_VIGILANCIA; docentes-tutores se financian en DOCENTES; convenios, simuladores, embarcaciones, EPP, seguros, movilidad y TRB se financian en ALTERNANCIA_EFSRT. No existe doble contabilización.
